bitfinex-derivatives/quotes_ETHF0:USTF0_20220106
["timestamp","ask_amount","ask_price","bid_price","bid_amount"]
[1641471692933,2.00479,3332.3,3331.4,2.00479]
[1641471692934,0.397182,3332.2,3331.4,2.00479]
[1641471693631,1.239782,3332.2,3331.4,2.00479]
[1641471693830,1.239782,3332.2,3331.5,0.03392326]
[1641471694940,2.00479,3331.9,3331.5,0.03392326]
[1641471695132,0.397182,3331.8,3331.5,0.03392326]
[1641471695332,0.459982,3331.7,3331.5,0.03392326]
[1641471695733,0.397182,3331.6,3331.5,2.326e-05]
[1641471695933,0.397182,3331.6,3330.3,33.5227]
[1641471696134,1.50037509,3331.4,3329.7,5.9252]
[1641471696333,1.5,3331.3,3329.6,33.9606]
[1641471696534,3.65247509,3331.4,3329.6,33.9606]
[1641471696733,2.00479,3330.5,3329.8,2.00479]
[1641471696934,2.87599,3330.5,3329.9,0.397182]
[1641471697134,2.87599,3330.5,3329.9,0.81566674]
[1641471697437,2.87599,3330.5,3330.0,0.03401274]
[1641471697635,2.87599,3330.5,3330.1,0.397182]
[1641471698038,2.87599,3330.5,3330.2,0.03401274]
[1641471698237,0.857164,3330.4,3330.2,0.03401274]
[1641471698438,0.857164,3330.4,3329.9,0.03401274]
[1641471698638,0.397182,3330.4,3330.3,0.03401274]
[1641471698838,0.397182,3330.4,3329.9,0.397182]
[1641471698839,0.397182,3330.4,3330.0,0.03401274]
[1641471699337,2.00479,3330.5,3330.3,0.03401274]
[1641471699537,2.00479,3330.5,3330.1,1.897182]
[1641471699538,3.00479,3330.5,3330.1,0.03401274]
[1641471699737,3.00479,3330.5,3330.4,0.03401274]
[1641471699938,3.00479,3330.5,3330.3,0.397182]
[1641471700138,0.459982,3330.4,3330.3,0.397182]
[1641471700339,3.00479,3330.5,3330.3,0.397182]
[1641471700641,3.00479,3330.5,3329.9,1.149472]
[1641471700839,3.00479,3330.5,3330.0,0.397182]
[1641471701139,3.00479,3330.5,3330.1,1.5]
[1641471701339,3.00479,3330.5,3330.2,0.397182]
[1641471704142,2.00479,3330.9,3330.2,0.397182]
[1641471704143,2.00479,3330.9,3330.4,1.5]
[1641471704343,1.00315132,3332.4,3330.8,1.5]
[1641471704742,2.00479,3331.9,3331.1,2.00479]
[1641471704942,2.00479,3331.9,3331.2,0.781654]
[1641471705544,2.00479,3331.9,3331.2,0.397182]
[1641471705943,0.397182,3331.8,3331.1,2.61599]
[1641471706444,1.50034808,3331.5,3329.6,1.50034808]
[1641471706846,3.00117016,3329.7,3327.7,1.50117016]
[1641471707045,1.5,3329.5,3327.7,1.50117016]
[1641471707244,12.81,3329.6,3327.7,1.50117016]
[1641471707444,0.6263,3329.5,3327.7,1.50117016]
[1641471707845,2.27697016,3329.7,3327.7,1.50117016]
[1641471708045,15.08697016,3329.7,3327.7,1.50117016]
[1641471708249,1.5,3329.6,3327.7,1.50117016]
[1641471708646,15.08697016,3329.7,3327.7,1.50117016]
[1641471708847,2.27697016,3329.7,3327.7,1.50117016]
[1641471709246,2.00479,3328.5,3327.8,2.00479]
[1641471709448,2.00479,3328.5,3327.9,0.781654]
[1641471709648,2.00479,3328.5,3328.1,1.5]
[1641471709848,2.00479,3328.5,3328.2,0.397182]
[1641471710147,2.00479,3328.9,3328.3,1.5]
[1641471710349,2.00479,3328.9,3328.7,1.5]
[1641471710547,2.00479,3328.9,3328.3,1.50093583]
[1641471710950,2.00479,3328.9,3328.4,0.397182]
[1641471711249,2.00479,3328.9,3328.4,2.401972]
[1641471711450,2.401972,3328.9,3328.4,2.401972]
[1641471711851,2.401972,3328.9,3328.4,2.00479]
[1641471712148,2.401972,3328.9,3328.4,2.401972]
[1641471712848,2.401972,3328.9,3328.4,2.00479]
[1641471714149,2.401972,3328.9,3328.4,2.401972]
[1641471714448,2.00479,3328.9,3328.4,2.401972]
[1641471715449,2.00479,3328.9,3328.5,0.03395131]
[1641471715648,2.00479,3328.9,3328.6,0.397182]
[1641471716051,2.00479,3328.9,3328.7,0.03395131]
[1641471716450,2.00479,3328.9,3328.8,0.397182]
[1641471716851,2.00479,3328.9,3328.7,1.139072]
[1641471717051,2.00479,3328.9,3328.7,0.2884344]
[1641471717953,2.00479,3328.9,3328.4,2.00479]
[1641471718352,2.00479,3328.9,3328.5,0.0339496]
[1641471719353,0.397182,3328.8,3328.5,0.0339496]
[1641471719554,0.459982,3328.7,3328.5,0.0339496]
[1641471719955,0.397182,3328.6,3328.5,0.0339496]
[1641471722562,0.397182,3328.6,3326.6,0.4493]
[1641471722961,1.50186908,3328.1,3326.3,64.852]
[1641471723161,2.37166908,3328.1,3326.3,64.852]
[1641471723360,2.00479,3327.5,3326.7,2.00479]
[1641471723562,0.781654,3327.4,3326.7,2.00479]
[1641471723767,1.442954,3327.4,3326.7,2.00479]
[1641471723962,1.442954,3327.4,3326.8,0.384472]
[1641471724160,1.045772,3327.4,3326.8,0.384472]
[1641471724367,1.5,3326.9,3324.9,3.619]
[1641471724568,12.81,3327.2,3324.9,4.0757]
[1641471724862,12.81,3327.2,3324.9,3.619]
[1641471725364,2.00479,3325.8,3324.9,5.467]
[1641471725969,1.5028351,3325.7,3324.9,5.467]
[1641471726167,0.781654,3325.6,3324.1,33.6109]
[1641471726371,0.781654,3325.6,3324.2,1.50264992]
[1641471726769,0.781654,3325.6,3323.7,4.0]
[1641471726967,0.781654,3325.6,3324.3,1.50260928]
[1641471727369,2.00479,3324.5,3323.7,2.00479]
[1641471727573,2.00479,3324.5,3323.9,1.5]
[1641471727767,2.00479,3324.5,3324.1,1.50269734]
[1641471727970,2.401972,3324.5,3322.5,4.0]
[1641471728168,1.50349261,3324.2,3322.5,4.0]
[1641471728368,2.00479,3324.5,3323.2,1.5]
[1641471728570,2.00479,3324.5,3323.0,1.50321236]
[1641471728770,3.50479,3324.5,3322.7,1.50321237]
[1641471728973,2.00479,3324.5,3322.2,1.5]
[1641471729171,2.00479,3324.5,3322.7,1.50333666]
[1641471729374,2.00479,3323.0,3322.5,4.0]
[1641471729572,1.5,3324.5,3322.3,3.50479]
[1641471729771,1.5,3324.5,3322.3,2.00479]
[1641471730071,1.5,3324.5,3322.5,4.0]
[1641471730272,1.5,3324.5,3322.4,4.814346]
[1641471730672,1.5,3324.5,3322.8,1.50327338]
[1641471730871,1.5,3324.5,3322.4,4.814346]
[1641471731173,1.5,3324.5,3323.1,1.5]
[1641471731372,2.00479,3323.7,3322.9,2.00479]
[1641471731576,0.781654,3323.6,3322.9,2.00479]
[1641471731773,0.384472,3323.6,3322.9,2.00479]
[1641471731973,2.85919,3323.7,3322.9,2.00479]
[1641471732376,1.5,3324.5,3323.2,1.5]
[1641471732574,1.5,3324.5,3323.2,0.8708]
[1641471732976,1.5,3324.5,3323.5,1.50297966]
[1641471733375,1.5,3324.5,3324.0,2.00479]
[1641471735375,1.0,3324.5,3324.0,2.00479]
[1641471735777,1.0,3324.5,3324.0,1.50479]
[1641471736376,1.50250543,3326.4,3324.4,3.00250543]
[1641471736579,1.50250543,3326.4,3324.9,1.5]
[1641471736778,2.50538815,3327.0,3325.1,1.50223683]
[1641471737176,1.00315132,3327.0,3324.9,2.1073]
[1641471737377,2.00479,3326.2,3325.4,2.00479]
[1641471737776,2.00479,3326.2,3325.5,0.03398077]
[1641471737977,2.00479,3326.2,3325.7,1.5]
[1641471738177,2.00479,3326.6,3325.7,0.5978]
[1641471738576,2.00479,3326.6,3325.8,0.03398077]
[1641471739178,2.203568,3327.4,3325.8,0.03398077]
[1641471739384,2.203568,3327.4,3326.3,2.00479]
[1641471739385,2.00479,3327.1,3326.3,2.00479]
[1641471739781,0.384472,3327.0,3326.3,2.00479]
[1641471739979,3.45513535,3327.4,3326.9,1.5]
[1641471740179,3.45513535,3327.4,3326.9,2.35251809]
[1641471740582,3.85231735,3327.4,3327.0,0.03398077]
[1641471741183,3.45513535,3327.4,3327.0,0.03398077]
[1641471741379,3.45513535,3327.4,3326.7,0.03398077]
[1641471741582,3.45513535,3327.4,3326.7,1.53398077]
[1641471741887,0.75322265,3328.6,3327.3,1.50125355]
[1641471742081,0.75322265,3328.6,3327.3,2.10675355]
[1641471742282,3.00125355,3329.2,3327.3,2.10675355]
[1641471742283,0.75322265,3328.8,3327.3,2.10675355]
[1641471742482,0.75322265,3328.8,3327.4,0.03398077]
[1641471742691,1.5,3328.7,3327.4,0.03398077]
[1641471742889,2.215,3328.7,3327.4,0.03398077]
[1641471743089,1.5,3328.4,3326.7,0.03398077]
[1641471743291,0.715,3328.7,3327.5,0.03398077]
[1641471743491,0.715,3328.7,3328.1,2.00479]
[1641471743691,1.50157139,3328.5,3327.8,2.00479]
[1641471744090,0.397182,3328.4,3327.8,2.00479]
[1641471744291,0.397182,3328.4,3327.9,0.03398077]
[1641471744892,0.397182,3328.4,3326.9,1.50142034]
[1641471745291,0.397182,3328.4,3326.9,2.12772034]
[1641471745490,1.00479,3328.2,3327.4,2.00479]
[1641471746091,1.00479,3328.2,3327.5,0.03397153]
[1641471746696,0.397182,3328.1,3327.5,0.03397153]
[1641471748294,2.50479,3328.2,3327.5,0.03397153]
[1641471749698,1.5,3328.2,3327.5,2.16147153]
[1641471750095,1.5,3328.2,3327.6,0.03397153]
[1641471750298,1.0,3328.7,3328.0,1.5]
[1641471750495,1.0,3328.7,3328.2,1.0]
[1641471750696,1.0,3328.7,3328.2,1.5513]
[1641471751097,1.384472,3328.7,3328.3,0.03397153]
[1641471751500,1.384472,3328.7,3328.6,2.00479]
[1641471751695,1.844454,3328.7,3328.6,2.00479]
[1641471751896,1.844454,3328.7,3328.6,2.03876153]
[1641471752495,1.384472,3328.7,3328.6,2.03876153]
[1641471752695,1.844454,3328.7,3328.6,2.03876153]
[1641471753897,1.384472,3328.7,3328.6,2.03876153]
[1641471754097,1.844454,3328.7,3328.6,2.03876153]
[1641471754496,3.344454,3328.7,3328.2,1.0]
[1641471754696,3.997554,3328.7,3328.2,1.0]
[1641471754899,1.5,3328.5,3328.2,1.0]
[1641471755098,0.459982,3328.4,3328.2,1.0]
[1641471755297,1.897182,3328.3,3326.6,1.0]
[1641471755498,2.50668614,3327.8,3326.6,3.00479]
[1641471755698,3.05638614,3327.8,3326.7,0.03397803]
[1641471755896,1.5,3327.7,3326.7,0.03397803]
[1641471756097,3.05638614,3327.8,3326.7,0.03397803]
[1641471756698,1.55449,3327.8,3326.7,0.03397803]
[1641471756897,1.00479,3327.8,3326.7,0.03397803]
[1641471757600,2.00479,3327.4,3326.7,0.03397803]
[1641471757799,2.389262,3327.4,3326.7,0.03397803]
[1641471758700,2.889262,3327.4,3326.7,0.03397803]
[1641471758901,2.50479,3327.4,3326.7,0.03397803]
[1641471759401,0.5,3327.4,3327.0,2.00479]
[1641471759802,0.5,3327.4,3327.1,0.03397803]
[1641471760503,0.459982,3327.3,3327.1,0.03397803]
[1641471760704,0.459982,3327.4,3327.1,0.03397803]
[1641471761104,1.959982,3327.4,3327.1,0.03397803]
[1641471761505,1.959982,3327.4,3327.2,0.459982]
[1641471761906,1.959982,3327.4,3327.3,0.03397803]
[1641471762607,32.4749,3328.6,3327.3,1.53514819]
[1641471763106,1.25322265,3328.7,3327.3,1.53514819]
[1641471763107,1.25322265,3328.7,3327.4,0.03397803]
[1641471763307,0.5,3328.7,3327.4,0.03397803]
[1641471763506,0.5,3328.7,3328.1,2.00479]
[1641471763707,0.781654,3328.6,3328.1,2.00479]
[1641471764107,0.781654,3328.6,3328.2,0.03397803]
[1641471768611,4.25939242,3328.9,3328.2,0.03397803]
[1641471768909,0.5,3328.6,3328.2,0.03397803]
[1641471769109,2.75801265,3328.9,3328.6,0.5]
[1641471769311,2.75801265,3328.9,3328.7,0.459982]
[1641471769512,0.75322265,3329.3,3328.8,2.00479]
[1641471769709,0.75322265,3329.3,3328.8,2.92506803]
[1641471769710,1.15040465,3329.3,3328.8,2.92506803]
[1641471770110,0.75322265,3329.3,3328.8,0.92036803]
[1641471770811,0.75322265,3329.4,3328.8,0.92036803]
[1641471772711,2.75801265,3329.8,3328.8,0.92036803]
[1641471772912,0.75322265,3329.8,3328.8,2.42095701]
[1641471773112,1.5,3329.6,3328.8,0.92036803]
[1641471773310,0.781654,3329.5,3328.8,0.03406803]
[1641471773510,2.786444,3329.5,3328.8,0.03406803]
[1641471774711,4.286444,3329.5,3328.8,0.03406803]
[1641471774911,5.78756008,3329.5,3328.8,0.03406803]
[1641471775111,0.75322265,3329.3,3328.8,0.03406803]
[1641471775311,0.397182,3329.2,3328.8,0.03406803]
[1641471775512,2.00479,3328.9,3328.6,0.5]
[1641471775717,0.53769,3328.8,3328.6,0.5]
[1641471775913,0.934872,3328.8,3328.7,0.0339675]
[1641471776514,2.434872,3328.8,3328.7,0.0339675]
[1641471776717,2.434872,3328.8,3327.7,2.00479]
[1641471776915,1.5,3328.4,3327.7,2.00479]
[1641471777114,0.397182,3328.3,3327.7,2.00479]
[1641471777518,2.401972,3328.3,3327.7,2.00479]
[1641471777714,1.50168865,3328.2,3327.7,2.00479]
[1641471777914,0.781654,3328.1,3327.7,2.00479]
[1641471778114,0.781654,3328.1,3327.8,0.03397478]
[1641471778317,0.153218,3328.0,3327.8,0.03397478]
[1641471778714,0.397182,3327.9,3327.8,0.03397478]
[1641471779614,0.397182,3327.9,3327.2,2.00479]
[1641471779615,2.401972,3327.9,3327.3,0.03397478]
[1641471779814,2.401972,3327.9,3327.8,0.03397478]
[1641471780014,2.55519,3327.9,3327.2,2.00479]
[1641471780818,2.55519,3327.9,3326.6,2.00479]
[1641471781015,1.50190742,3327.7,3326.6,2.00479]
[1641471782316,4.76280265,3327.9,3326.6,2.00479]
[1641471784521,4.00958,3327.9,3326.6,2.00479]
[1641471784721,5.51140848,3327.9,3326.6,2.00479]
[1641471785421,4.00958,3327.9,3326.8,1.5]
[1641471785620,4.00958,3327.9,3327.1,2.00479]
[1641471786023,0.397182,3327.8,3327.1,2.00479]
[1641471786221,0.75322265,3328.0,3327.1,2.00479]
[1641471786422,1.25502185,3328.5,3327.9,5.50090429]
[1641471786620,0.98932274,3328.5,3328.2,1.5]
[1641471786820,0.38142274,3328.5,3328.4,1.50070383]
[1641471787221,0.38142274,3328.5,3328.4,2.92630493]
[1641471787622,1.50472697,3329.0,3328.4,6.93588493]
[1641471787822,1.50472697,3329.0,3328.5,0.397182]
[1641471788120,2.50787829,3329.5,3328.5,0.397182]
[1641471788321,2.61895175,3330.0,3328.5,0.397182]
[1641471788722,0.16981339,3329.9,3328.5,0.397182]
[1641471789124,0.6473383,3329.9,3328.5,0.397182]
[1641471789522,0.47752491,3329.9,3328.5,0.397182]
[1641471789724,1.97752491,3329.9,3329.6,2.00479]
[1641471789923,37.82481157,3329.7,3327.3,34.55926482]
[1641471790124,1.5,3328.6,3327.3,1.50126482]
[1641471790325,2.0911,3328.6,3327.2,3.1416122]
[1641471790524,0.5911,3328.6,3327.2,3.1416122]
[1641471791745,2.00479,3328.1,3327.4,2.51569574]
[1641471791927,2.00479,3328.1,3327.5,0.781654]
[1641471792928,2.00479,3328.1,3327.5,1.387354]
[1641471795132,2.00479,3328.1,3327.6,0.03397104]
[1641471795333,2.389262,3328.1,3327.6,0.03397104]
[1641471795732,2.00479,3327.7,3327.4,0.03397104]
[1641471795933,0.153218,3327.6,3327.0,2.00479]
[1641471796133,0.153218,3327.6,3327.1,0.781654]
[1641471797434,0.153218,3327.6,3327.0,2.00479]
[1641471797435,1.897182,3327.5,3327.0,2.00479]
[1641471797634,2.00479,3327.2,3326.4,2.00479]
[1641471797833,2.00479,3327.2,3326.5,0.397182]
[1641471798333,2.00479,3327.2,3326.6,0.384472]
[1641471798534,2.401972,3327.2,3326.6,0.384472]
[1641471798735,2.401972,3327.2,3326.6,0.781654]
[1641471800033,2.00479,3327.2,3326.6,0.781654]
[1641471800236,2.00479,3327.2,3326.6,1.609054]
[1641471801435,2.00479,3327.7,3326.6,3.109054]
[1641471801638,31.91520099,3328.0,3327.5,2.00479]
[1641471801837,0.99020099,3328.0,3327.6,0.397182]
[1641471802235,0.99020099,3327.9,3327.6,0.397182]
[1641471802437,0.153218,3327.8,3327.6,0.397182]
[1641471803138,0.99020099,3327.9,3327.7,1.5]
[1641471803338,2.50787829,3328.9,3327.8,5.89800295]
[1641471803535,1.24043844,3328.6,3328.4,1.5]
[1641471803736,1.24043844,3328.6,3328.5,4.406762]
[1641471804035,0.81053844,3328.6,3328.5,4.791234]
[1641471804435,0.81053844,3328.6,3328.5,5.251216]
[1641471804836,0.384472,3328.7,3328.5,4.406762]
[1641471805235,2.50787829,3329.4,3328.6,0.459982]
[1641471805436,1.5,3329.8,3328.5,4.00958]
[1641471805635,2.00479,3329.2,3328.5,4.00958]
[1641471805937,0.397182,3329.1,3328.5,4.00958]
[1641471806738,0.397182,3329.1,3328.5,4.406762]
[1641471806937,0.397182,3329.1,3328.5,4.791234]
[1641471807137,0.781654,3329.1,3328.5,4.791234]
[1641471807738,0.781654,3329.1,3328.5,4.00958]
[1641471808142,0.781654,3329.1,3327.7,1.9036682]
[1641471808342,0.781654,3329.1,3327.7,5.9036682]
[1641471808544,1.50145867,3328.7,3327.7,4.0]
[1641471808742,0.5938,3328.7,3327.7,4.0]
[1641471808943,0.5938,3328.7,3327.9,1.5]
[1641471809142,0.5938,3328.7,3328.0,0.781654]
[1641471809744,2.00479,3328.8,3328.1,1.5]
[1641471810044,2.00479,3329.2,3328.2,0.397182]
[1641471811045,2.00479,3329.2,3328.3,0.03396407]
[1641471811645,2.00479,3329.2,3328.1,0.03396407]
[1641471811849,2.00479,3329.2,3328.5,2.00479]
[1641471812048,0.781654,3329.1,3328.2,0.03396407]
[1641471812247,1.5,3328.5,3328.2,0.03396407]
[1641471812447,0.5504,3328.4,3328.1,0.03396407]
[1641471812848,0.5504,3328.4,3328.3,0.03396407]
[1641471813045,0.5504,3328.4,3328.2,0.03396407]
[1641471813246,0.5504,3328.4,3328.3,0.03396407]
[1641471813648,0.5504,3328.4,3327.6,0.03396407]
[1641471813849,4.55998,3328.4,3328.3,0.03396407]
[1641471814049,4.944452,3328.4,3327.7,0.03396407]
[1641471814249,4.944452,3328.4,3328.3,0.03396407]
[1641471814553,4.944452,3328.4,3327.8,0.03396407]
[1641471814851,4.944452,3328.4,3328.3,0.03396407]
[1641471815251,6.444452,3328.4,3327.3,0.03396407]
[1641471815454,1.5,3327.9,3327.3,0.03396407]
[1641471815651,1.5,3327.7,3327.0,1.9036682]
[1641471815853,4.00958,3327.4,3327.0,1.9036682]
[1641471816251,3.00218944,3327.1,3327.0,6.82e-05]
[1641471816452,3.15540744,3327.1,3326.5,3.1416122]
[1641471816651,0.397182,3327.0,3326.8,1.90210575]
[1641471816853,1.134982,3327.0,3326.8,1.90210575]
[1641471817058,1.50233388,3326.9,3326.8,1.90210575]
[1641471817251,0.153218,3326.9,3326.8,1.90210575]
[1641471817853,2.158008,3326.9,3326.8,1.90210575]
[1641471818053,2.00479,3326.9,3326.8,2.36208775]
[1641471818254,2.00479,3326.9,3326.8,0.459982]
[1641471818654,2.00479,3326.9,3326.8,0.857164]
[1641471818855,0.74503158,3327.9,3326.8,0.857164]
[1641471819054,0.74503158,3327.9,3326.8,3.011064]
[1641471819259,0.74503158,3327.9,3326.8,1.113882]
[1641471819854,0.74503158,3327.9,3327.2,2.00479]
[1641471820055,0.781654,3327.8,3326.8,2.00479]
[1641471821259,0.5,3326.9,3326.8,2.00479]
[1641471821457,0.5,3326.9,3326.8,2.861954]
[1641471822961,0.5,3326.9,3326.8,2.464772]
[1641471825166,0.5,3326.9,3326.8,2.861954]
[1641471825369,1.50159169,3328.4,3326.8,2.861954]
[1641471825566,0.99059293,3328.6,3327.3,1.5]
[1641471825766,2.00479,3328.4,3327.7,2.00479]
[1641471825965,0.384472,3328.2,3327.7,3.469844]
[1641471826169,0.384472,3328.2,3327.7,3.085372]
[1641471827269,0.74503158,3328.5,3327.7,4.585372]
[1641471827469,0.74503158,3328.5,3327.7,3.085372]
[1641471827669,2.00479,3328.8,3327.7,3.085372]
[1641471827870,2.00479,3328.8,3328.2,2.00479]
[1641471828070,2.401972,3328.8,3328.2,2.00479]
[1641471829474,2.401972,3328.8,3327.7,2.00479]
[1641471829672,2.951872,3328.8,3327.7,2.00479]
[1641471830773,4.451872,3328.8,3327.8,0.0339729]
[1641471831072,2.951872,3328.8,3327.8,0.0339729]
[1641471831474,1.5,3328.6,3327.8,0.0339729]
[1641471831672,0.397182,3328.5,3327.8,0.0339729]
[1641471831873,3.50479,3327.9,3326.8,2.00479]
[1641471832073,2.77049,3327.9,3326.7,0.31845944]
[1641471832275,1.5,3327.7,3326.7,0.31845944]
[1641471832476,1.5,3327.7,3326.5,2.53553594]
[1641471832774,1.5,3327.5,3326.6,1.90124901]
[1641471832974,3.39679,3327.9,3326.6,1.90124901]
[1641471833175,1.5,3326.9,3326.7,0.03398273]
[1641471833375,0.5504,3326.8,3326.6,1.90124901]
[1641471833976,0.5504,3326.8,3326.4,4.54032594]
[1641471834177,0.5504,3326.8,3326.4,2.00479]
[1641471834576,2.00479,3327.2,3326.4,2.00479]
[1641471834775,2.74982158,3327.9,3326.4,2.66449]
[1641471835176,0.74503158,3327.8,3326.4,2.66449]
[1641471835975,0.5,3327.7,3327.0,2.00479]
[1641471836176,0.897182,3327.7,3327.0,2.00479]
[1641471837480,2.39913228,3327.7,3327.0,2.00479]
[1641471837877,1.50204955,3327.4,3327.0,2.00479]
[1641471838178,0.397182,3327.3,3327.0,2.00479]
[1641471838380,0.153218,3327.2,3327.0,2.00479]
[1641471838580,0.397182,3327.1,3327.0,2.00479]
[1641471840184,0.397182,3327.1,3327.0,2.464772]
[1641471840382,0.397182,3327.1,3327.0,2.00479]
[1641471840583,0.5,3327.7,3327.0,2.389262]
[1641471840781,0.5,3327.7,3327.0,3.007462]
[1641471840982,0.5,3327.7,3327.1,0.397182]
[1641471841584,0.5,3327.7,3327.1,1.897182]
[1641471841784,0.0001,3327.7,3327.6,1.5]
[1641471841984,0.0001,3327.7,3327.6,4.361954]
[1641471842385,0.0001,3327.7,3327.6,2.861954]
[1641471844285,0.0001,3327.7,3327.6,4.361954]
[1641471844486,0.0001,3327.7,3327.6,2.861954]
[1641471846789,0.0001,3327.7,3327.6,4.361954]
[1641471847791,0.0001,3327.7,3327.6,5.086554]
[1641471848189,0.74503158,3329.2,3327.6,9.086554]
[1641471848390,0.74503158,3329.2,3328.6,1.5]
[1641471848592,0.74503158,3329.2,3328.7,0.781554]
[1641471848791,0.74503158,3329.2,3328.7,2.28219252]
[1641471849391,0.74503158,3329.2,3329.1,1.5]
[1641471849593,0.99059293,3329.5,3329.2,0.397082]
[1641471849792,0.74235356,3329.8,3329.2,0.397082]
[1641471849993,0.74235356,3329.8,3329.6,2.00479]
[1641471850193,0.89557156,3329.8,3329.6,2.00479]
[1641471850793,0.74235356,3329.8,3329.7,0.857064]
[1641471850995,0.74235356,3329.8,3329.7,1.247782]
[1641471851193,0.153218,3329.8,3329.7,0.8507]
[1641471851694,1.50063852,3330.6,3329.7,0.8507]
[1641471851895,0.397182,3330.4,3330.0,2.00479]
[1641471852095,0.16979207,3330.5,3330.1,0.397082]
[1641471852295,1.50063852,3330.6,3330.1,0.397082]
[1641471853394,1.23955178,3331.0,3330.1,0.397082]
[1641471853795,1.5003841,3331.1,3330.1,0.397082]
[1641471853796,0.16977905,3330.9,3330.1,0.397082]
[1641471854195,0.16977905,3331.0,3330.1,0.397082]
[1641471854397,0.16977905,3330.8,3330.1,0.397082]
[1641471854597,1.66977905,3330.9,3330.1,0.397082]
[1641471854795,0.397182,3330.8,3330.1,0.397082]
[1641471854995,0.56696105,3330.8,3330.0,4.00958]
[1641471855203,0.16977905,3330.7,3330.0,2.00479]
[1641471855403,0.397182,3330.6,3330.0,2.00479]
[1641471856004,2.17456905,3330.5,3330.0,2.00479]
[1641471856203,0.397182,3330.4,3330.0,2.00479]
[1641471856907,0.397182,3330.4,1673.5,28.91054921]
[1641471856908,3.00093583,3330.1,3328.0,3.40218484]
[1641471857106,1.5,3329.2,3328.0,1.90124901]
[1641471857305,1.50115664,3329.4,3328.0,1.90124901]
[1641471857505,1.5009854,3329.8,3328.0,3.40124901]
[1641471857705,1.501062,3329.6,3328.0,1.90124901]
[1641471857903,2.00479,3329.3,3328.5,2.00479]
[1641471858106,2.00479,3329.3,3328.6,0.781554]
[1641471859404,3.50582947,3329.7,3328.6,0.781554]
[1641471859605,2.00479,3329.7,3328.6,0.781554]
[1641471860009,2.00479,3329.7,3329.2,2.00479]
[1641471860207,0.397182,3329.6,3329.2,2.00479]
[1641471861808,1.5,3329.5,3328.6,0.384472]
[1641471862007,5.00581145,3329.7,3328.6,0.384472]
[1641471862807,0.16984661,3329.6,3328.6,0.384472]
[1641471863410,1.5,3328.8,3328.3,2.00479]
[1641471863608,1.5,3328.6,3327.1,4.03675568]
[1641471863909,2.00479,3328.4,3327.6,2.00479]
[1641471864109,0.397182,3328.3,3327.7,0.384472]
[1641471864309,2.00479,3328.4,3327.7,0.781554]
[1641471866912,1.50127383,3329.2,3328.3,1.5]
[1641471867110,32.44219769,3329.7,3328.3,0.7851]
[1641471867315,0.98659769,3329.7,3328.3,0.7851]
[1641471867913,3.50571682,3329.9,3329.1,2.00479]
[1641471868114,2.00479,3329.9,3329.2,0.781554]
[1641471868315,2.00479,3329.9,3329.1,2.504644]
[1641471868512,2.00479,3329.9,3329.1,1.004644]
[1641471869513,2.00479,3329.9,3329.1,0.504644]
[1641471870213,2.00479,3329.9,3329.2,0.384472]
[1641471870214,0.397182,3329.8,3329.2,0.384472]
[1641471870516,0.781654,3329.8,3329.2,0.384472]
[1641471870712,0.781654,3329.8,3328.8,2.00479]
[1641471873717,1.786444,3329.9,3328.8,2.00479]
[1641471874316,1.786444,3329.9,3328.8,2.73809]
[1641471874518,1.786444,3329.9,3329.1,1.5]
[1641471874816,1.786444,3329.9,3329.2,0.781654]
[1641471875417,0.73901534,3330.1,3329.8,1.5]
[1641471875620,1.23955178,3330.8,3329.9,0.857164]
[1641471875817,0.98659769,3330.5,3329.9,0.857164]
[1641471876019,0.98659769,3330.5,3330.0,2.00479]
[1641471876217,0.98659769,3330.5,3330.1,0.397182]
[1641471876616,0.98659769,3330.5,3330.2,0.384472]
[1641471876817,2.00479,3330.8,3330.3,0.857164]
[1641471877220,2.00479,3330.8,3330.3,0.397182]
[1641471877720,2.00479,3330.8,3330.3,1.061582]
[1641471878119,0.98659769,3331.4,3330.4,1.5]
[1641471878521,0.98659769,3331.5,3330.4,1.5]
[1641471878718,0.98659769,3331.5,3330.5,4.0]
[1641471879118,0.98659769,3331.5,3330.6,1.5]
[1641471880019,2.99138769,3331.8,3331.0,2.00479]
[1641471880220,2.99138769,3331.8,3331.1,0.781654]
[1641471880620,0.16973414,3331.7,3331.1,0.781654]
[1641471882222,2.00479,3331.8,3331.7,0.83026586]
[1641471882424,4.05519,3331.8,3331.7,0.83026586]
[1641471882825,2.55519,3331.8,3331.7,0.83026586]
[1641471883424,2.72492974,3331.8,3331.7,0.86421381]
[1641471883627,2.72492974,3331.8,3331.0,2.00479]
[1641471883924,1.5,3331.7,3331.0,2.00479]
[1641471884126,2.00479,3331.4,3331.0,2.00479]
[1641471884325,0.397182,3331.3,3331.0,2.00479]
[1641471884525,0.153218,3331.2,3331.0,2.00479]
[1641471884725,0.153218,3331.2,3331.1,0.03395118]
[1641471885125,0.32297569,3331.2,3331.1,0.03395118]
[1641471886025,0.153218,3331.2,3331.1,0.03395118]
[1641471890332,0.397182,3331.1,3329.7,32.1748]
[1641471890532,1.5,3331.0,3329.1,0.4489]
[1641471890730,0.566,3331.1,3329.0,5.5]
[1641471890929,2.00479,3331.4,3329.3,1.5]
[1641471891129,2.00479,3331.4,3329.5,1.50027605]
[1641471891130,5.00506605,3331.4,3329.5,1.50027605]
[1641471891333,0.16977633,3331.3,3329.5,1.50027605]
[1641471891534,0.16977633,3331.3,3329.6,0.03395527]
[1641471891931,1.67007489,3331.3,3329.6,0.03395527]
[1641471892131,2.00479,3330.2,3329.6,0.03395527]
[1641471892333,2.00479,3330.2,3329.7,0.781654]
[1641471892731,2.00479,3330.2,3329.8,0.03395527]
[1641471893131,2.00479,3330.2,3329.9,0.397182]
[1641471893331,2.00479,3330.5,3330.0,0.459982]